bitfinex-derivatives/quotes_BNBF0:USTF0_20241225
["timestamp","ask_amount","ask_price","bid_price","bid_amount"]
[1735102024688,1.85367724,702.55,701.49,1.06456527]
[1735102025790,1.85367724,702.55,701.42,1.06456527]
[1735102025992,0.28468129,702.54,701.42,1.06456527]
[1735102026789,0.28468129,702.54,701.39,1.06456527]
[1735102027495,2.18368129,702.54,701.39,1.06456527]
[1735102027702,2.18368129,702.54,701.19,0.28522939]
[1735102027703,2.18368129,702.54,701.36,1.06456527]
[1735102029295,2.18368129,702.54,701.19,0.28522939]
[1735102029296,2.18368129,702.54,701.34,1.06456527]
[1735102030298,2.18368129,702.54,701.33,1.06456527]
[1735102031202,2.18368129,702.54,701.19,0.28522939]
[1735102031203,2.18368129,702.54,701.34,1.06456527]
[1735102031894,2.18368129,702.54,701.36,1.06456527]
[1735102032999,2.18368129,702.54,701.19,0.28522939]
[1735102033000,2.18368129,702.54,701.35,1.06456527]
[1735102034295,2.18368129,702.54,701.32,1.06456527]
[1735102035104,2.18368129,702.54,701.19,0.28522939]
[1735102035105,2.18368129,702.54,701.35,1.06456527]
[1735102036403,2.18368129,702.54,701.38,1.06456527]
[1735102037704,2.18368129,702.54,701.4,1.06456527]
[1735102038302,2.18368129,702.54,701.41,1.06456527]
[1735102039306,2.18368129,702.54,701.42,1.06456527]
[1735102040505,2.18368129,702.54,701.48,1.06456527]
[1735102041907,2.18368129,702.54,701.55,1.06456527]
[1735102042804,2.18368129,702.54,701.72,1.06456527]
[1735102044107,2.18368129,702.54,701.65,1.06456527]
[1735102045102,2.18368129,702.54,701.66,1.06456527]
[1735102046106,2.18368129,702.54,701.71,1.06456527]
[1735102049304,2.18368129,702.54,701.75,1.06456527]
[1735102050107,2.18368129,702.54,701.74,1.06456527]
[1735102051210,2.18368129,702.54,701.2,0.78195256]
[1735102051211,2.18368129,702.54,701.86,1.06456527]
[1735102052306,2.18368129,702.54,701.74,1.06456527]
[1735102053608,2.18368129,702.54,701.32,0.78195256]
[1735102053609,2.18368129,702.54,701.72,1.06456527]
[1735102054607,2.18368129,702.54,701.71,1.06456527]
[1735102055316,2.18368129,702.54,701.73,1.06456527]
[1735102056715,2.18368129,702.54,701.74,1.06456527]
[1735102060017,2.18368129,702.54,701.71,1.06456527]
[1735102061623,2.18368129,702.54,701.7,1.06456527]
[1735102062625,0.26190219,702.53,701.7,1.06456527]
[1735102062820,0.26190219,702.53,701.53,1.06456527]
[1735102063026,0.28468129,702.54,701.53,1.06456527]
[1735102063218,0.2619103,702.53,701.53,1.06456527]
[1735102063920,0.2619103,702.53,701.2,1.84651783]
[1735102063921,1.5639103,702.53,701.42,1.06456527]
[1735102064124,0.2619103,702.52,701.42,1.06456527]
[1735102064724,2.398,702.53,701.39,1.06456527]
[1735102064926,0.26189896,702.52,701.39,1.06456527]
[1735102065123,2.398,702.53,701.39,1.06456527]
[1735102065525,0.26189761,702.52,701.4,1.06456527]
[1735102065728,2.398,702.53,701.4,1.06456527]
[1735102066121,0.28469345,702.51,701.4,1.06456527]
[1735102066827,0.28469345,702.51,701.33,1.06456527]
[1735102067726,0.28469345,702.51,701.32,1.06456527]
[1735102068923,0.28469345,702.51,701.3,1.06456527]
[1735102069822,0.28469345,702.51,701.28,1.06456527]
[1735102070729,0.28469345,702.51,700.58,2.17348743]
[1735102070730,0.28469345,702.51,701.31,1.06456527]
[1735102071629,0.28469345,702.51,701.29,1.06456527]
[1735102072624,0.28469345,702.51,701.28,1.06456527]
[1735102073530,0.28469345,702.51,701.27,1.06456527]
[1735102074230,0.26190805,702.5,701.27,1.06456527]
[1735102074530,0.28470156,702.49,701.27,1.06456527]
[1735102074732,0.28470156,702.49,701.26,1.06456527]
[1735102075626,0.28470156,702.49,700.62,2.17348743]
[1735102075627,0.26191235,702.48,701.22,1.06456527]
[1735102075827,0.28470966,702.47,701.22,1.06456527]
[1735102076031,0.26191235,702.46,701.22,1.06456527]
[1735102076230,2.398,702.53,701.22,1.06456527]
[1735102076231,0.5466302,702.45,701.22,1.06456527]
[1735102076431,0.5466302,702.45,700.58,2.17348743]
[1735102076432,0.54663425,702.44,701.29,1.06456527]
[1735102076629,0.26191243,702.43,701.29,1.06456527]
[1735102076830,0.28472993,702.42,701.29,1.06456527]
[1735102077028,0.26191243,702.41,701.29,1.06456527]
[1735102077629,0.28473804,702.4,701.28,1.06456527]
[1735102079631,0.28473804,702.4,701.2,1.06456527]
[1735102080436,0.28473804,702.4,701.21,1.06456527]
[1735102081136,1.39573804,702.4,701.21,1.06456527]
[1735102081635,1.39573804,702.4,701.22,1.06456527]
[1735102083235,1.39573804,702.4,701.24,1.06456527]
[1735102084439,1.39573804,702.4,701.25,1.06456527]
[1735102086532,1.39573804,702.4,701.24,1.06456527]
[1735102087239,1.39573804,702.4,701.28,1.06456527]
[1735102088043,1.39573804,702.4,701.29,1.06456527]
[1735102089138,1.39573804,702.4,701.02,1.06456527]
[1735102089139,1.39573804,702.4,701.54,1.06456527]
[1735102090538,1.111,702.4,701.62,1.06456527]
[1735102091538,1.111,702.4,701.69,1.06456527]
[1735102092343,2.222,702.4,701.69,1.06456527]
[1735102092544,2.222,702.4,701.61,1.06456527]
[1735102093344,2.222,702.4,701.57,1.06456527]
[1735102094344,2.222,702.4,701.56,1.06456527]
[1735102095445,2.222,702.4,701.53,1.06456527]
[1735102096346,2.222,702.4,701.6,1.06456527]
[1735102097144,2.222,702.4,701.59,1.06456527]
[1735102098345,2.222,702.4,701.54,1.06456527]
[1735102098949,2.222,702.4,701.6,1.06456527]
[1735102099950,2.222,702.4,701.19,0.28522939]
[1735102099951,2.222,702.4,701.57,1.06456527]
[1735102100847,2.222,702.4,701.19,0.28522939]
[1735102100848,2.222,702.4,701.56,1.06456527]
[1735102102154,2.222,702.4,701.19,0.28522939]
[1735102102155,2.222,702.4,701.54,1.06456527]
[1735102103450,2.222,702.4,701.48,1.06456527]
[1735102104357,2.222,702.4,701.51,1.06456527]
[1735102105152,2.222,702.4,701.5,1.06456527]
[1735102106961,2.222,702.4,701.63,1.06456527]
[1735102108161,2.222,702.4,701.56,1.06456527]
[1735102109462,2.222,702.4,701.19,0.28522939]
[1735102109463,2.222,702.4,701.62,1.06456527]
[1735102110262,2.222,702.4,701.65,1.06456527]
[1735102111256,2.222,702.4,701.64,1.06456527]
[1735102112460,2.222,702.4,701.7,1.06456527]
[1735102113560,2.222,702.4,701.72,1.06456527]
[1735102114661,2.222,702.4,701.71,1.06456527]
[1735102115460,2.222,702.4,701.73,1.06456527]
[1735102116455,2.222,702.4,701.72,1.06456527]
[1735102117662,2.222,702.4,701.7,1.06456527]
[1735102119559,2.222,702.4,701.76,1.06456527]
[1735102125066,2.222,702.4,701.86,1.06456527]
[1735102125970,2.222,702.4,701.88,1.06456527]
[1735102127071,2.222,702.4,701.42,1.27747833]
[1735102127072,2.222,702.4,701.81,1.06456527]
[1735102127871,2.222,702.4,701.69,1.06456527]
[1735102128768,2.222,702.4,701.68,1.06456527]
[1735102129469,2.222,702.4,701.2,0.78072385]
[1735102129470,2.222,702.4,701.7,1.06456527]
[1735102131373,2.222,702.4,701.68,1.06456527]
[1735102132374,2.222,702.4,701.56,1.06456527]
[1735102133567,2.222,702.4,701.64,1.06456527]
[1735102134876,2.222,702.4,701.71,1.06456527]
[1735102135679,2.222,702.4,701.24,0.78072385]
[1735102135680,2.222,702.4,701.69,1.06456527]
[1735102136874,2.222,702.4,701.67,1.06456527]
[1735102137672,2.222,702.4,701.68,1.06456527]
[1735102139078,2.222,702.4,701.7,1.06456527]
[1735102140082,2.222,702.4,701.63,1.06456527]
[1735102141682,2.222,702.4,701.24,0.78072385]
[1735102141683,2.222,702.4,701.59,1.06456527]
[1735102142582,2.222,702.4,701.24,0.78072385]
[1735102142583,2.222,702.4,701.57,1.06456527]
[1735102143484,2.222,702.4,701.58,1.06456527]
[1735102144285,2.222,702.4,701.59,1.06456527]
[1735102146581,2.222,702.4,701.57,1.06456527]
[1735102147887,2.222,702.4,701.5,1.06456527]
[1735102149489,2.222,702.4,701.36,1.06456527]
[1735102150684,2.222,702.4,701.31,1.06456527]
[1735102151085,2.50673804,702.4,701.31,1.06456527]
[1735102151685,2.50673804,702.4,701.38,1.06456527]
[1735102152790,2.50673804,702.4,701.23,0.28521312]
[1735102152791,2.50673804,702.4,701.42,1.06456527]
[1735102154093,2.50673804,702.4,701.39,1.06456527]
[1735102154983,2.50673804,702.4,701.38,1.06456527]
[1735102155686,2.50673804,702.4,701.39,1.06456527]
[1735102156887,2.50673804,702.4,701.38,1.06456527]
[1735102158292,2.50673804,702.4,701.43,1.06456527]
[1735102158690,0.28474209,702.39,701.43,1.06456527]
[1735102159291,0.28474209,702.39,701.44,1.06456527]
[1735102160090,2.35374209,702.39,701.44,1.06456527]
[1735102160291,2.35374209,702.39,701.42,1.06456527]
[1735102161693,2.35374209,702.39,701.49,1.06456527]
[1735102162800,2.35374209,702.39,701.41,1.06456527]
[1735102164894,2.35374209,702.39,701.4,1.06456527]
[1735102166804,2.35374209,702.39,701.38,1.06456527]
[1735102169506,2.35374209,702.39,701.39,1.06456527]
[1735102170409,2.35374209,702.39,701.41,1.06456527]
[1735102171313,2.35374209,702.39,701.43,1.06456527]
[1735102172515,2.35374209,702.39,701.49,1.06456527]
[1735102173715,2.35374209,702.39,701.5,1.06456527]
[1735102175015,2.35374209,702.39,701.54,1.06456527]
[1735102176215,2.35374209,702.39,701.56,1.06456527]
[1735102178116,2.35374209,702.39,701.46,1.06456527]
[1735102179016,2.35374209,702.39,701.47,1.06456527]
[1735102180313,2.35374209,702.39,701.48,1.06456527]
[1735102181418,2.35374209,702.39,701.54,1.06456527]
[1735102182418,2.35374209,702.39,701.57,1.06456527]
[1735102183519,2.35374209,702.39,701.59,1.06456527]
[1735102184322,2.35374209,702.39,701.6,1.06456527]
[1735102186226,2.35374209,702.39,701.64,1.06456527]
[1735102187423,2.35374209,702.39,701.65,1.06456527]
[1735102188624,2.35374209,702.39,701.64,1.06456527]
[1735102189321,2.35374209,702.39,701.63,1.06456527]
[1735102190722,2.35374209,702.39,701.24,0.78671008]
[1735102190723,2.35374209,702.39,701.67,1.06456527]
[1735102191526,2.069,702.39,701.67,1.06456527]
[1735102191730,2.069,702.39,701.87,1.06456527]
[1735102192726,2.069,702.39,701.86,1.06456527]
[1735102193727,2.069,702.39,701.79,1.06456527]
[1735102194925,2.069,702.39,701.72,1.06456527]
[1735102195733,2.069,702.39,701.64,1.06456527]
[1735102196627,2.069,702.39,701.61,1.06456527]
[1735102197728,2.069,702.39,701.6,1.06456527]
[1735102198732,2.069,702.39,701.54,1.06456527]
[1735102199935,2.069,702.39,701.24,1.85127535]
[1735102199936,2.069,702.39,701.53,1.06456527]
[1735102200829,2.069,702.39,701.52,1.06456527]
[1735102202936,2.069,702.39,701.54,1.06456527]
[1735102204033,2.069,702.39,701.24,0.78671008]
[1735102204034,2.069,702.39,701.56,1.06456527]
[1735102205135,2.069,702.39,701.59,1.06456527]
[1735102205932,2.069,702.39,701.62,1.06456527]
[1735102208939,2.069,702.39,701.64,1.06456527]
[1735102209939,2.069,702.39,701.65,1.06456527]
[1735102211034,2.069,702.39,701.66,1.06456527]
[1735102211844,2.069,702.39,701.68,1.06456527]
[1735102212741,2.069,702.39,701.69,1.06456527]
[1735102214036,2.069,702.39,701.7,1.06456527]
[1735102215039,2.069,702.39,701.75,1.06456527]
[1735102216045,2.069,702.39,701.77,1.06456527]
[1735102216843,2.069,702.39,701.78,1.06456527]
[1735102217743,2.069,702.39,701.8,1.06456527]
[1735102218746,2.069,702.39,701.82,1.06456527]
[1735102220147,2.069,702.39,701.88,1.06456527]
[1735102221350,2.069,702.39,701.9,1.06456527]
[1735102222442,2.069,702.39,701.88,1.06456527]
[1735102224050,2.069,702.39,701.35,2.17348743]
[1735102224051,2.069,702.39,701.89,1.06456527]
[1735102225050,2.069,702.39,701.91,1.06456527]
[1735102226152,2.069,702.39,701.81,1.06456527]
[1735102227050,2.069,702.39,701.38,1.27747833]
[1735102227051,2.069,702.39,701.76,1.06456527]
[1735102228351,2.069,702.39,701.72,1.06456527]
[1735102229145,2.069,702.39,701.77,1.06456527]
[1735102230146,2.069,702.39,701.73,1.06456527]
[1735102231951,2.069,702.39,701.18,2.17348743]
[1735102231952,2.069,702.39,701.72,1.06456527]
[1735102233087,2.069,702.39,701.59,1.06456527]
[1735102234251,2.069,702.39,701.57,1.06456527]
[1735102235255,2.069,702.39,701.48,1.06456527]
[1735102236555,2.069,702.39,701.46,1.06456527]
[1735102237754,2.069,702.39,701.23,0.28521312]
[1735102237755,2.069,702.39,701.44,1.06456527]
[1735102238650,2.069,702.39,701.45,1.06456527]
[1735102239652,2.069,702.39,701.44,1.06456527]
[1735102240851,2.069,702.39,701.43,1.06456527]
[1735102243053,2.069,702.39,701.39,1.06456527]
[1735102244057,2.069,702.39,701.23,0.28521312]
[1735102244058,2.069,702.39,701.35,1.06456527]
[1735102245259,2.069,702.39,701.27,1.06456527]
[1735102246158,2.069,702.39,701.23,0.28521312]
[1735102249160,2.069,702.39,701.23,1.34977839]
[1735102250360,2.069,702.39,701.23,0.28521312]
[1735102251259,2.069,702.39,701.39,1.06456527]
[1735102253763,2.069,702.39,701.42,1.06456527]
[1735102254963,2.069,702.39,701.4,1.06456527]
[1735102255769,2.069,702.39,701.43,1.06456527]
[1735102256570,2.069,702.39,701.41,1.06456527]
[1735102257666,2.069,702.39,701.43,1.06456527]
[1735102258371,2.069,702.39,701.46,1.06456527]
[1735102259267,2.069,702.39,701.47,1.06456527]
[1735102260471,2.069,702.39,701.53,1.06456527]
[1735102261670,2.069,702.39,701.24,0.78655375]
[1735102261671,2.069,702.39,701.57,1.06456527]
[1735102262871,2.069,702.39,701.59,1.06456527]
[1735102263572,2.069,702.39,701.61,1.06456527]
[1735102264171,2.069,702.39,701.64,1.06456527]
[1735102265569,2.069,702.39,701.61,1.06456527]
[1735102266375,2.069,702.39,701.63,1.06456527]
[1735102266870,0.28474614,702.38,701.63,1.06456527]
[1735102267672,0.28474614,702.38,701.48,1.06456527]
[1735102268274,2.12174614,702.38,701.48,1.06456527]
[1735102268875,2.12174614,702.38,701.42,1.06456527]
[1735102270074,2.12174614,702.38,701.38,1.06456527]
[1735102270975,0.26195223,702.37,701.38,1.06456527]
[1735102271177,0.26195223,702.37,701.37,1.06456527]
[1735102272078,0.26195002,702.36,701.37,1.06456527]
[1735102272276,0.26195002,702.36,700.73,2.17348743]
[1735102272277,2.12174614,702.38,701.38,1.06456527]
[1735102272578,0.54669492,702.37,701.38,1.06456527]
[1735102272777,0.2847502,702.37,701.38,1.06456527]
[1735102274477,0.2847502,702.37,701.41,1.06456527]
[1735102275580,0.2847502,702.37,701.52,1.06456527]
[1735102276480,0.2847502,702.37,701.54,1.06456527]
[1735102277177,0.2847502,702.37,701.29,1.06456527]
[1735102277178,0.2847502,702.37,701.52,1.06456527]
[1735102278376,0.2847502,702.37,701.54,1.06456527]
[1735102279685,0.2847502,702.37,701.64,1.06456527]
[1735102281084,0.2847502,702.37,701.7,1.06456527]
[1735102281985,0.2847502,702.37,701.68,1.06456527]
[1735102283087,0.2847502,702.37,701.6,1.06456527]
[1735102284087,0.2847502,702.37,701.58,1.06456527]
[1735102284581,1.3807502,702.37,701.58,1.06456527]
[1735102285183,1.3807502,702.37,701.53,1.06456527]
[1735102286191,1.3807502,702.37,701.42,1.06456527]
[1735102287390,1.3807502,702.37,700.76,2.17348743]
[1735102287391,2.6767502,702.37,701.28,1.06456527]
[1735102289594,2.6767502,702.37,701.47,1.06456527]
[1735102290593,2.6767502,702.37,701.49,1.06456527]
[1735102291492,2.6767502,702.37,701.41,1.06456527]
[1735102293596,2.6767502,702.37,701.39,1.06456527]
[1735102294694,2.6767502,702.37,700.71,2.17348743]
[1735102294695,2.6767502,702.37,701.35,1.06456527]
[1735102295698,2.6767502,702.37,701.36,1.06456527]
[1735102296499,2.6767502,702.37,701.37,1.06456527]
[1735102297499,2.6767502,702.37,701.36,1.06456527]
[1735102298196,2.6767502,702.37,701.33,1.06456527]
[1735102299604,2.6767502,702.37,701.3,1.06456527]
[1735102300303,2.6767502,702.37,701.31,1.06456527]
[1735102301503,2.6767502,702.37,701.33,1.06456527]
[1735102302499,2.6767502,702.37,701.3,1.06456527]
[1735102303603,2.6767502,702.37,701.36,1.06456527]
[1735102304505,2.6767502,702.37,701.41,1.06456527]
[1735102305609,2.6767502,702.37,701.43,1.06456527]
[1735102306403,2.6767502,702.37,700.8,2.17348743]
[1735102306404,2.6767502,702.37,701.47,1.06456527]
[1735102307710,2.6767502,702.37,701.46,1.06456527]
[1735102308610,2.6767502,702.37,701.45,1.06456527]
[1735102309708,2.6767502,702.37,701.47,1.06456527]
[1735102310309,0.26192181,702.36,701.47,1.06456527]
[1735102310509,2.6767502,702.37,701.47,1.06456527]
[1735102310711,2.6767502,702.37,701.45,1.06456527]
[1735102311511,0.28475425,702.36,701.45,1.06456527]
[1735102311911,0.28475425,702.36,701.4,1.06456527]
[1735102313814,0.28475425,702.36,701.42,1.06456527]
[1735102314508,1.60675425,702.36,701.42,1.06456527]
[1735102315107,1.60675425,702.36,700.94,1.27747833]
[1735102315108,1.60675425,702.36,701.41,1.06456527]
[1735102316013,1.60675425,702.36,701.42,1.06456527]
[1735102316609,2.91575425,702.36,701.42,1.06456527]
[1735102317117,2.91575425,702.36,701.44,1.06456527]
[1735102318215,2.91575425,702.36,701.47,1.06456527]
[1735102321018,2.91575425,702.36,701.48,1.06456527]
[1735102324116,2.91575425,702.36,700.96,1.27747833]
[1735102324117,2.91575425,702.36,701.45,1.06456527]
[1735102324823,2.91575425,702.36,701.46,1.06456527]
[1735102325726,0.2619536,702.35,701.46,1.06456527]
[1735102325925,0.28476236,702.34,701.41,1.06456527]
[1735102326129,0.2619536,702.33,701.41,1.06456527]
[1735102326328,0.28477047,702.32,701.41,1.06456527]
[1735102326729,0.28477047,702.32,701.46,1.06456527]
[1735102327528,0.28477047,702.32,701.47,1.06456527]
[1735102328925,0.26193738,702.31,701.47,1.06456527]
[1735102329130,0.28477047,702.32,701.47,1.06456527]
[1735102330031,0.28477047,702.32,701.52,1.06456527]
[1735102331031,0.28477047,702.32,701.0,2.17348743]
[1735102331032,0.28477047,702.32,701.56,1.06456527]
[1735102332135,0.28477047,702.32,701.58,1.06456527]
[1735102332734,1.25277047,702.32,701.58,1.06456527]
[1735102333330,1.25277047,702.32,701.59,1.06456527]
[1735102333731,2.08277047,702.32,701.59,1.06456527]
[1735102334237,2.08277047,702.32,701.6,1.06456527]
[1735102335435,2.08277047,702.32,701.62,1.06456527]
[1735102336633,2.08277047,702.32,701.61,1.06456527]
[1735102337737,2.08277047,702.32,701.63,1.06456527]
[1735102340941,2.08277047,702.32,701.62,1.06456527]
[1735102342941,2.08277047,702.32,701.63,1.06456527]
[1735102344042,2.08277047,702.32,701.44,1.06456527]
[1735102344043,2.08277047,702.32,701.58,1.06456527]
[1735102345050,2.08277047,702.32,701.59,1.06456527]
[1735102346543,2.08277047,702.32,701.6,1.06456527]
[1735102349445,2.08277047,702.32,701.04,2.17348743]
[1735102349446,2.08277047,702.32,701.45,1.06456527]
[1735102350348,2.08277047,702.32,701.46,1.06456527]
[1735102351446,2.08277047,702.32,701.47,1.06456527]
[1735102352047,2.08277047,702.32,701.46,1.06456527]
[1735102358556,2.08277047,702.32,701.48,1.06456527]
[1735102360153,2.08277047,702.32,701.56,1.06456527]
[1735102361453,2.08277047,702.32,701.5,1.06456527]
[1735102362248,2.08277047,702.32,701.49,1.06456527]
[1735102363353,1.798,702.32,701.49,1.06456527]
[1735102363756,1.798,702.32,701.55,1.06456527]
[1735102364958,1.798,702.32,694.26,8.50777582]
[1735102364959,1.798,702.32,701.79,1.06456527]
[1735102365957,1.798,702.32,701.84,1.06456527]
[1735102366963,1.798,702.32,701.76,1.06456527]
[1735102367959,1.798,702.32,701.71,1.06456527]
[1735102368861,1.798,702.32,701.43,1.06456527]
[1735102368862,1.798,702.32,701.66,1.06456527]
[1735102369858,1.798,702.32,701.63,1.06456527]
[1735102370763,1.798,702.32,701.61,1.06456527]
[1735102371960,1.798,702.32,701.56,1.06456527]
[1735102373866,1.798,702.32,701.58,1.06456527]
[1735102374565,1.798,702.32,701.57,1.06456527]
[1735102375667,1.798,702.32,701.63,1.06456527]
[1735102378076,1.798,702.32,701.61,1.06456527]
[1735102379376,1.798,702.32,701.56,1.06456527]
[1735102379776,1.798,702.32,701.57,0.2850749]
[1735102383777,1.798,702.32,701.6,1.06456527]
[1735102384482,1.798,702.32,701.67,1.06456527]
[1735102385879,1.798,702.32,701.68,1.06456527]
[1735102387283,1.798,702.32,701.78,1.06456527]
[1735102389685,1.798,702.32,701.87,1.06456527]
[1735102390689,1.798,702.32,701.81,1.06456527]
[1735102391387,1.798,702.32,701.82,0.28497335]
[1735102395589,0.898,702.32,701.82,0.28497335]
[1735102395896,0.28429282,703.5,701.82,0.28497335]
[1735102396097,0.28429686,703.49,701.82,0.28497335]
[1735102396992,1.49629686,703.49,701.82,0.28497335]
[1735102397195,2.57029686,703.49,701.82,0.28497335]
[1735102397395,2.57029686,703.49,701.82,1.34953862]
[1735102398296,2.57029686,703.49,701.83,1.06456527]
[1735102399600,2.57029686,703.49,701.82,0.28497335]
[1735102399601,2.57029686,703.49,701.84,1.06456527]
[1735102400601,2.57029686,703.49,701.85,0.28496117]
[1735102400802,2.57029686,703.49,701.86,1.06456527]
[1735102401301,2.57029686,703.49,701.85,0.28496117]
[1735102401302,2.57029686,703.49,701.87,1.06456527]
[1735102402401,2.57029686,703.49,701.85,0.28496117]
[1735102402402,2.57029686,703.49,701.86,1.06456527]
[1735102404600,2.57029686,703.49,701.89,1.06456527]
[1735102404802,0.26156874,703.48,701.89,1.06456527]
[1735102405603,0.26156874,703.48,701.96,1.06456527]
[1735102405796,0.28430494,703.47,701.96,1.06456527]
[1735102406002,0.26156801,703.46,701.96,1.06456527]
[1735102406203,0.28431302,703.45,701.96,1.06456527]
[1735102406404,0.26156801,703.44,701.96,1.06456527]
[1735102406605,0.28432111,703.43,701.96,1.06456527]
[1735102406805,0.28432111,703.43,702.01,1.06456527]
[1735102408105,0.26156762,703.42,702.04,1.06456527]
[1735102408305,0.28432919,703.41,702.04,1.06456527]
[1735102408505,0.26156762,703.4,702.04,1.06456527]
[1735102408706,0.28433728,703.39,702.04,1.06456527]
[1735102408907,0.26157011,703.38,702.04,1.06456527]
[1735102409209,0.28434536,703.37,702.11,1.06456527]
[1735102409508,0.26157011,703.36,702.11,1.06456527]
[1735102409708,0.28435345,703.35,702.11,1.06456527]
[1735102410105,0.28435345,703.35,701.88,1.06456527]
[1735102410106,0.26157011,703.34,702.13,1.06456527]
[1735102410304,0.28436153,703.33,702.13,1.06456527]
[1735102411008,0.28436153,703.33,702.18,1.06456527]
[1735102411905,0.28436153,703.33,702.21,1.06456527]
[1735102413012,0.26157029,703.32,702.22,1.06456527]
[1735102413208,0.28436962,703.31,702.22,1.06456527]
[1735102414012,0.28436962,703.31,702.26,1.06456527]
[1735102415015,0.28436962,703.31,702.32,1.06456527]
[1735102415914,0.26157281,703.3,702.31,1.06456527]
[1735102417107,0.26157281,703.3,702.34,1.06456527]
[1735102417311,0.28436962,703.31,702.34,1.06456527]
[1735102417511,0.26157232,703.3,702.34,1.06456527]
[1735102417713,0.28436962,703.31,702.34,1.06456527]
[1735102417909,0.28436962,703.31,702.38,1.06456527]
[1735102419315,0.28436962,703.31,702.34,1.06456527]
[1735102420209,0.28436962,703.31,702.38,1.06456527]
[1735102421521,0.28436962,703.31,701.87,0.78148871]
[1735102421522,0.28436962,703.31,702.4,1.06456527]
[1735102422219,1.10736962,703.31,702.4,1.06456527]
[1735102424725,1.10736962,703.31,702.39,1.06456527]
[1735102425723,1.10736962,703.31,702.4,1.06456527]
[1735102426423,2.08936962,703.31,702.4,1.06456527]
[1735102426622,2.08936962,703.31,702.39,1.06456527]
[1735102427616,2.08936962,703.31,702.44,1.06456527]
[1735102428125,0.26160533,703.3,702.44,1.06456527]
[1735102428326,0.28437771,703.29,702.44,1.06456527]
[1735102428925,0.28437771,703.29,702.4,1.06456527]
[1735102429527,0.26161408,703.28,702.4,1.06456527]
[1735102429827,0.28438579,703.27,702.4,1.06456527]
[1735102430028,0.28438579,703.27,701.87,0.78148871]
[1735102430029,0.28438579,703.27,702.35,1.06456527]
[1735102430927,0.28438579,703.27,702.32,1.06456527]
[1735102431630,0.28438579,703.27,701.87,0.78148871]
[1735102431631,0.28438579,703.27,702.31,1.06456527]
[1735102432935,0.28438579,703.27,702.33,1.06456527]
[1735102434132,0.28438579,703.27,702.31,1.06456527]
[1735102435338,0.28438579,703.27,702.28,1.06456527]
[1735102436431,0.28438579,703.27,701.87,0.78148871]
[1735102436432,0.28438579,703.27,702.27,1.06456527]
[1735102439940,0.28438579,703.27,702.25,1.06456527]
[1735102440937,0.28438579,703.27,702.26,1.06456527]
[1735102444445,0.28438579,703.27,702.31,1.06456527]
[1735102447246,0.26160922,703.26,702.31,1.06456527]
[1735102447546,0.28439388,703.25,702.31,1.06456527]
[1735102448446,0.26163986,703.24,702.31,1.06456527]
[1735102448639,0.26163986,703.24,701.87,0.78148871]
[1735102448640,0.26163986,703.24,702.17,1.06456527]
[1735102449347,0.28440601,703.22,702.17,1.06456527]
[1735102449547,0.26163986,703.21,702.17,1.06456527]
[1735102449749,0.28441815,703.19,702.17,1.06456527]
[1735102449948,0.26163986,703.18,702.18,1.06456527]
[1735102450148,0.28443028,703.16,702.18,1.06456527]
[1735102450340,0.26163986,703.15,702.18,1.06456527]
[1735102450546,0.28443837,703.14,702.18,1.06456527]
[1735102450742,0.28443837,703.14,701.87,0.78148871]
[1735102450743,0.26163986,703.13,702.16,1.06456527]
[1735102450948,0.28444646,703.12,702.16,1.06456527]
[1735102451747,0.28444646,703.12,702.19,1.06456527]
[1735102452943,0.28444646,703.12,702.18,1.06456527]
[1735102453750,0.28444646,703.12,702.17,1.06456527]
[1735102453751,0.26165557,703.11,702.17,1.06456527]
[1735102453951,0.28445455,703.1,702.17,1.06456527]
[1735102454549,0.28445455,703.1,702.16,1.06456527]
[1735102455849,0.28445455,703.1,702.0,1.06456527]
[1735102457250,0.28445455,703.1,701.86,0.28495711]
[1735102457251,0.28445455,703.1,701.99,1.06456527]
[1735102458753,0.28445455,703.1,702.02,1.06456527]
[1735102459754,0.28445455,703.1,702.05,1.06456527]
[1735102461650,0.28445455,703.1,702.06,1.06456527]
[1735102462853,0.28445455,703.1,702.08,1.06456527]
[1735102463854,0.28445455,703.1,702.07,1.06456527]
[1735102464956,0.28445455,703.1,702.06,1.06456527]
[1735102466356,0.28445455,703.1,702.12,1.06456527]
[1735102467450,0.28445455,703.1,702.15,1.06456527]
[1735102468652,0.28445455,703.1,702.29,1.06456527]
[1735102471152,0.28445455,703.1,702.28,1.06456527]
[1735102471553,1.15145455,703.1,702.28,1.06456527]
[1735102471955,1.15145455,703.1,702.24,1.06456527]
[1735102472859,1.15145455,703.1,702.1,1.06456527]
[1735102473758,1.15145455,703.1,702.11,1.06456527]
[1735102474758,1.15145455,703.1,701.86,0.28495711]